Cogmind - Beta 13 @@@ ROGUE MODE // 2024.04.04 @ 05:51:48 Player: iromakkem Result: Destroyed by G-47 Trooper with Particle Gun Performance ------------- Evolutions (2) 1000 Regions Visited (4) 800 Robots Destroyed (108) 540 Value Destroyed (3072) 3072 Prototype IDs (4) 80 Alien Tech Used (0) 0 Bonus (392) 392 TOTAL SCORE: 5884 Bonus ------- High Alert Combat Kills 371 Follower Combat Kills 21 Cogmind --------- Core Integrity 0/550 Matter 384/400 Energy 259/280 System Corruption 0% Temperature Cool (56) Movement Walking (190) Ox1 Location -8/Materials Parts ------- > --- POWER (1) -------- Heavy Ion Engine > --- PROPULSION (2) --- Aluminum Leg Improved Aluminum Leg > --- UTILITY (5) ------ Medium Matter Pod Structural Scanner Machine Analyzer Terrain Scan Processor Hardened Medium Armor Plating > --- WEAPON (3) ------- Heavy Particle Gun Improved Light Cannon Rocket Launcher > --- INVENTORY (5) ---- Heavy Ion Engine Airjet Improved Heat Sink Hacking Suite Improved Assault Rifle Peak State ------------ > --- POWER ------------ Heavy Ion Engine > --- PROPULSION ------- Improved Aluminum Leg VSS Leg > --- UTILITY ---------- Medium Matter Pod Structural Scanner Machine Analyzer Terrain Scan Processor Hardened Medium Armor Plating > --- WEAPON ----------- Heavy Particle Gun Heavy Assault Rifle Improved Assault Rifle > --- INVENTORY -------- Heavy Ion Engine Aluminum Leg Improved Heat Sink Hacking Suite Rocket Launcher [Rating: 28] Favorites ----------- Power Ion Engine Engine Ion Engine Propulsion Aluminum Leg Treads Light Treads Leg Aluminum Leg Utility Large Storage Unit Device Cooling System Storage Large Storage Unit Processor Transport Network Coupler Protection Hardened Light Armor Plating Weapon Assault Rifle Energy Gun Small Laser Energy Cannon Particle Cannon Ballistic Gun Assault Rifle Ballistic Cannon Light Cannon Launcher Rocket Launcher Special Weapon Mining Laser Slashing Weapon Katana Build | -11 -10 -9 -9 -8 ------- Run | Yrd Mat Mat Min Mat Slots Evolved 4 | . . 2 . 2 Power . | . . . . . Propulsion . | . . . . . Utility 3 | . . 2 . 1 Weapon 1 | . . . . 1 Parts Attached 117 | 5 26 16 5 65 Power 11 | . 4 1 1 5 Engine 11 | . 4 1 1 5 Core . | . . . . . Reactor . | . . . . . Propulsion 27 | 2 6 3 2 14 Treads 4 | 2 2 . . . Leg 23 | . 4 3 2 14 Wheel . | . . . . . Hover . | . . . . . Flight . | . . . . . Utility 32 | 1 9 6 1 15 Device 12 | . 4 2 . 6 Storage 6 | 1 2 1 . 2 Processor 4 | . . 1 . 3 Hackware . | . . . . . Protection 10 | . 3 2 1 4 Artifact . | . . . . . Weapon 47 | 2 7 6 1 31 Energy Gun 15 | 2 3 . . 10 Energy Cannon 5 | . 1 3 . 1 Ballistic Gun 19 | . 3 3 . 13 Ballistic Cannon 2 | . . . . 2 Launcher 4 | . . . . 4 Special Weapon 1 | . . . 1 . Impact Weapon . | . . . . . Slashing Weapon 1 | . . . . 1 Piercing Weapon . | . . . . . Special Melee Weapon . | . . . . . Unidentified Prototypes 4 | . . 1 1 2 Parts Lost 32 | . 7 . . 25 Power 3 | . 2 . . 1 Propulsion 7 | . 2 . . 5 Utility 10 | . 1 . . 9 Weapon 12 | . 2 . . 10 Highest Loss Streak 9 | . 7 . . 9 To Critical Strikes . | . . . . . Average Slot Usage (%) 96 | . 94 99 99 94 Engine 10 | . 13 11 11 8 Treads 4 | . 15 . . . Leg 17 | . 12 21 21 17 Device 10 | . 9 11 11 11 Storage 10 | . 14 11 11 8 Processor 10 | . . 11 11 16 Protection 6 | . 3 11 11 5 Energy Gun 5 | . 13 . . 5 Energy Cannon 3 | . . 10 7 . Ballistic Gun 12 | . 10 10 11 14 Naked Turns . | . . . . . Heaviest Build 48 | 8 33 39 43 48 Greatest Support 40 | 40 40 20 20 27 Greatest Overweight (x) 11 | . 1 11 2 4 Average Overweight (x) . | . . 1 1 1 Largest Inventory Capacity 15 | 8 15 15 15 15 Average Capacity 13 | 7 12 15 15 12 Most Carried 15 | 5 15 15 15 15 Average Carried 12 | 4 11 14 14 11 Final Capacity 15 | 8 15 15 15 5 Final Carried 15 | 5 15 15 15 5 Class Distribution -------------------- 51% | Mutant 19% | Scavenger-Mutant 16% | Scavenger-Gunner 6% | Scavenger-Tank 4% | Scavenger-Skirmisher Dominant Class ---------------- Mutant | -10/Materials Mutant | -9/Materials Mutant | -9/Mines Scavenger-Gunner | -8/Materials Resources | -11 -10 -9 -9 -8 ----------- Run | Yrd Mat Mat Min Mat Matter Collected 2755 | 209 390 413 69 1674 Remotely . | . . . . . Salvage Created 4077 | . 826 877 . 2374 Parts 243 | . 50 51 1 141 Haulers Intercepted 7 | . 2 3 . 2 Recyclers Shooed 7 | . 1 4 . 2 Parts Field Recycled . | . . . . . Retrieved Matter . | . . . . . Parts Self-Destructed . | . . . . . Prevented . | . . . . . Kills | -11 -10 -9 -9 -8 ------- Run | Yrd Mat Mat Min Mat Combat Hostiles Destroyed 79 | . 16 14 1 48 Guns 48 | . 16 6 . 26 Cannons 15 | . . 7 1 7 AOE 15 | . . . . 15 Classes Destroyed 14 | . 7 2 . 5 Worker 8 | . 1 1 . 6 Builder 6 | . . . . 6 Tunneler 1 | . . . . 1 Hauler 7 | . 2 3 . 2 Recycler 3 | . . 2 . 1 Mechanic 4 | . 1 1 . 2 Operator 1 | . 1 . . . Watcher 7 | . 3 1 . 3 Swarmer 13 | . 3 3 1 6 Grunt 52 | . 13 8 . 31 Brawler 1 | . . . . 1 Duelist 1 | . . . . 1 Sentry 10 | . . 3 . 7 Hunter 2 | . . . . 2 Best Kill Streak 10 | . 5 4 1 10 Combat Bots Only 7 | . 3 4 1 7 Max Kills in Single Turn 3 | . 2 2 1 3 Gunslinging . | . . . . . Exploded 2 | . . . . 2 Melee . | . . . . . Uniques/NPCs Destroyed . | . . . . . Combat | -11 -10 -9 -9 -8 -------- Run | Yrd Mat Mat Min Mat Hostile Shots Fired 595 | . 123 98 14 360 Missed 187 | . 40 28 2 117 Damage Taken 6082 | . 972 868 113 4129 Core 869 | . 135 145 30 559 Absorbed by Shields . | . . . . . Ignored by Resistances 13 | . . . . 13 Core Remaining (%) 67 | 100 46 . 56 . Volleys Fired 313 | . 74 79 7 153 Largest 3 | . 2 2 1 3 Hottest 140 | . 80 91 100 140 Shots Fired 694 | . 144 158 7 385 Gun 529 | . 144 79 . 306 Cannon 137 | . . 79 . 58 Launcher 20 | . . . . 20 Special 8 | . . . 7 1 Kinetic 368 | . 38 79 . 251 Thermal 270 | . 89 79 7 95 Explosive 20 | . . . . 20 Electromagnetic 36 | . 17 . . 19 Robot Hit Streak 19 | . 19 11 1 11 Robot Miss Streak 5 | . 3 3 2 5 Penetration Max . | . . . . . Secondary Targets 1 | . 1 . . . Max Gunslinging Chain 1 | . 1 . . . Shots Hit Robots 450 | . 98 106 2 244 Core Hits 219 | . 41 29 1 148 Critical Kills 1 | . . 1 . . Critical Parts Destroyed 1 | . . . . 1 Critical Strikes 7 | . . 1 . 6 Burn 3 | . . . . 3 Meltdown 1 | . . 1 . . Destroy 1 | . . . . 1 Blast 2 | . . . . 2 Melee Attacks 3 | . . . . 3 Impact . | . . . . . Slashing 3 | . . . . 3 Piercing . | . . . . . Sneak Attacks 3 | . . . . 3 Combat Hostiles . | . . . . . Follow-up Attacks . | . . . . . Damage Inflicted 8820 | . 1156 1865 48 5751 Guns 4684 | . 1125 821 . 2738 Cannons 1817 | . . 1025 . 792 Explosions 2012 | . . . . 2012 Melee 186 | . . . . 186 Ramming 73 | . 31 19 . 23 Kinetic 3530 | . 309 821 . 2400 Thermal 2753 | . 682 1025 48 998 Explosive 2012 | . . . . 2012 Electromagnetic 266 | . 134 . . 132 Impact . | . . . . . Slashing 186 | . . . . 186 Piercing . | . . . . . Highest Corruption 1 | . . 1 1 . Average Corruption 1 | . . 1 1 . Corruption Purged . | . . . . . Corruption Blocked . | . . . . . Effects 10 | . . 5 5 . Message Errors 2 | . . . 2 . Matter Fused 4 | . . 3 1 . Heat Flow Errors 2 | . . 1 1 . Energy Discharges 1 | . . . 1 . Data Loss (major) 1 | . . 1 . . Overload Shots . | . . . . . Overflow Damage 78 | . . . 4 74 Projectiles 14 | . . . 4 10 Explosions 44 | . . . . 44 Melee 20 | . . . . 20 Knockbacks 8 | . . . . 8 Impact 1 | . . . . 1 Kinetic 7 | . . . . 7 Secondary . | . . . . . Self-Inflicted Damage 240 | . . 58 . 182 Shots 7 | . . 2 . 5 Rammed 1 | . 1 . . . Targets Rammed 17 | . 4 4 . 9 Kicked 16 | . 3 4 . 9 Crushed . | . . . . . Highest Temperature 311 | . 211 225 142 311 Average Temperature 64 | . 44 68 77 73 Received Heat Transfer 2631 | . 537 267 9 1818 Effects 1 | . . . . 1 Energy Bleed 1 | . . . . 1 Siege Activations . | . . . . . Robots Corrupted . | . . . . . Combat Hostiles . | . . . . . Parts Fried . | . . . . . Impact Corruptions . | . . . . . Robots Melted 1 | . . 1 . . Combat Hostiles 1 | . . 1 . . Parts Melted 9 | . . 5 . 4 Heat Transferred 5933 | . 1550 1961 100 2322 Parts Sabotaged . | . . . . . Parts Stolen . | . . . . . Parts Stripped . | . . . . . Power Chain Reactions . | . . . . . Alert | -11 -10 -9 -9 -8 ------- Run | Yrd Mat Mat Min Mat Peak Influence 956 | . 151 163 100 956 Initial 48 | . . 1 48 39 Average 190 | . 57 65 32 422 Maximum Alert Level 3 | . . . . 3 Low Security (%) 69 | 100 100 100 100 17 Level 1 4 | . . . . 12 Level 2 24 | . . . . 64 Level 3 1 | . . . . 4 Level 4 . | . . . . . Level 5 . | . . . . . High Security . | . . . . . Max Security . | . . . . . Squads Dispatched 21 | . 5 2 . 14 Investigation 6 | . 2 1 . 3 Extermination . | . . . . . Reinforcement 8 | . 3 1 . 4 Assault 3 | . . . . 3 Garrison 4 | . . . . 4 Intercept . | . . . . . Searches Triggered . | . . . . . Construction Impeded 3 | . . . . 3 Haulers Reinforced . | . . . . . Active Scanning Responses . | . . . . . Cargo Convoy Interrupts . | . . . . . Stealth | -11 -10 -9 -9 -8 --------- Run | Yrd Mat Mat Min Mat Distress Signals 9 | . 1 4 . 4 Communications Jammed . | . . . . . Distress Signals . | . . . . . Times Spotted 134 | . 25 21 4 84 Peak Tracking Total 6 | . 4 4 4 6 Tactical Retreats 5 | . . . . 5 Traps | -11 -10 -9 -9 -8 ------- Run | Yrd Mat Mat Min Mat Traps Triggered 2 | . 1 1 . . Indirectly . | . . . . . Trap Hack Attempts . | . . . . . Triggered . | . . . . . Disarmed . | . . . . . Reprogrammed . | . . . . . Reused . | . . . . . Traps Extracted . | . . . . . Installed . | . . . . . Triggered . | . . . . . Machines | -11 -10 -9 -9 -8 ---------- Run | Yrd Mat Mat Min Mat Machines Disabled 8 | . 1 3 . 4 Max in Single Turn 3 | . 1 3 . 1 Garrison Access 1 | . . . . 1 Machines Repaired . | . . . . . Machines Dismantled . | . . . . . Machines Sabotaged . | . . . . . Overloaded Fab Kills . | . . . . . Hacking | -11 -10 -9 -9 -8 --------- Run | Yrd Mat Mat Min Mat Machines Accessed 9 | . 3 2 . 4 Terminals 8 | . 3 2 . 3 Fabricators . | . . . . . Repair Stations . | . . . . . Recycling Units . | . . . . . Scanalyzers . | . . . . . Garrison Access 1 | . . . . 1 Total Hacks 28 | . 9 5 . 14 Successful 7 | . 2 3 . 2 Failed 21 | . 7 2 . 12 Catastrophic 2 | . . 1 . 1 Database Lockouts . | . . . . . Manual . | . . . . . Terminals 25 | . 9 5 . 11 Fabricators . | . . . . . Repair Stations . | . . . . . Recycling Units . | . . . . . Scanalyzers . | . . . . . Garrison Access 3 | . . . . 3 Terminal Hacks 7 | . 2 3 . 2 Record 1 | . . 1 . . Alert Level 3 | . 1 1 . 1 Unreport Threat 1 | . . . . 1 Investigation Status 1 | . . 1 . . Hauler Manifests 1 | . 1 . . . Fabricator Hacks . | . . . . . Repair Station Hacks . | . . . . . Recycling Unit Hacks . | . . . . . Scanalyzer . | . . . . . Garrison Access Hacks . | . . . . . Unauthorized Hacks . | . . . . . Terminals . | . . . . . Fabricators . | . . . . . Repair Stations . | . . . . . Recycling Units . | . . . . . Scanalyzers . | . . . . . Garrison Access . | . . . . . Data Cores Recovered . | . . . . . Used . | . . . . . Hacking Detections 9 | . 3 2 . 4 Full Trace Events 7 | . 2 1 . 4 Feedback Events . | . . . . . Feedback Blocked . | . . . . . Robot Schematics Acquired . | . . . . . Robots Built . | . . . . . Authchips . | . . . . . Time . | . . . . . Total Robot Build Rating . | . . . . . Part Schematics Acquired . | . . . . . Parts Built . | . . . . . Authchips . | . . . . . Time . | . . . . . Total Part Build Rating . | . . . . . Parts Repaired . | . . . . . Time . | . . . . . Parts Recycled . | . . . . . Recycled Matter . | . . . . . Retrieved Matter . | . . . . . Retrieved Components . | . . . . . Parts Scanalyzed . | . . . . . Part Schematics Acquired . | . . . . . Parts Damaged . | . . . . . Bothacking | -11 -10 -9 -9 -8 ------------ Run | Yrd Mat Mat Min Mat Used RIF Installer . | . . . . . Robots Hacked . | . . . . . Non-combat . | . . . . . Combat . | . . . . . Robot Hacks Applied . | . . . . . Relay Couplers Released 3 | . . . . 3 Machine Destruction 3 | . . . . 3 Fabnet Peak Effective % . | . . . . . Robots Rewired . | . . . . . Allies Hacked . | . . . . . Hacks Repelled . | . . . . . Allies | -11 -10 -9 -9 -8 -------- Run | Yrd Mat Mat Min Mat Total Allies 1 | . . . 1 . Largest Group 1 | . . . 1 1 Highest-Rated Group 31 | . . . 31 31 Highest-Rated Ally 31 | . . . 31 31 Total Orders . | . . . . . Ally Attacks 7 | . . . 7 . Total Damage 124 | . . . 124 . Kills 3 | . . . 3 . Allies Corrupted . | . . . . . Allies Melted . | . . . . . Intel | -11 -10 -9 -9 -8 ------- Run | Yrd Mat Mat Min Mat Robot Analysis Total . | . . . . . Derelict Logs Recovered 1 | . . . 1 . Drone Launches . | . . . . . Drone Recoveries . | . . . . . Exploration | -11 -10 -9 -9 -8 ------------- Run | Yrd Mat Mat Min Mat Turns Passed 6248 | 329 1567 1338 672 2342 Spaces Moved 2461 | 51 729 548 331 802 Core 9 | 8 . 1 . . Treads 463 | 43 420 . . . Legs 1989 | . 309 547 331 802 Wheels . | . . . . . Hover . | . . . . . Flight . | . . . . . Fastest Speed 50 | 50 160 190 190 105 Average Speed 191 | 142 172 192 190 213 Slowest Speed 600 | 160 190 600 260 400 Overloaded Moves . | . . . . . Propulsion Burnouts . | . . . . . Robots Hopped . | . . . . . Cave-ins Triggered . | . . . . . Exploration Rate (%) 47 | 7 74 27 71 58 Regions Visited 4 Branch Regions 1 Pre-discovered Areas . | . . . . . Known Exits Taken . | . . . . . Unknown Exits Taken 4 | 1 1 1 1 . Scrap Searched 3 | . . . 3 . Spaces Dug 2 | . . . 2 . Terrain Destroyed 151 | . . . 5 146 Melee . | . . . . . Projectile 5 | . . . 5 . AOE 146 | . . . . 146 Terrain Rammed . | . . . . . Walls Destroyed . | . . . . . Machines Disabled . | . . . . . Actions | -11 -10 -9 -9 -8 --------- Run | Yrd Mat Mat Min Mat Total 3357 | 307 897 677 354 1122 Wait 277 | 242 10 4 5 16 Move 2457 | 50 728 547 330 802 Hop . | . . . . . Pick Up 92 | 10 32 13 3 34 Fast Attach 33 | . 6 5 1 21 Attach 65 | 5 14 10 3 33 Detach 5 | . 2 . . 3 Swap 19 | . 6 1 1 11 Drop 76 | . 21 14 4 37 Fire 313 | . 74 79 7 153 Melee 3 | . . . . 3 Ram . | . . . . . Kick 16 | . 3 4 . 9 Crush 1 | . 1 . . . Escape Stasis . | . . . . . Rewire . | . . . . . Trap . | . . . . . Miscellaneous . | . . . . . Route ------- -11/Scrapyard -10/Materials -9/Materials -9/Mines -8/Materials History --------- Turn | Location | Event 35 | -11/Scrapyard | Discovered new exit (range 15) 330 | -11/Scrapyard | Entered Materials 351 | -10/Materials | Build established: Mutant 1352 | -10/Materials | Core integrity fell below 50% 1378 | -10/Materials | Lost 7 parts (2p2n1u2w) 1875 | -10/Materials | Discovered new exit (range 12) 1897 | -10/Materials | Entered another Materials area 1897 | -9/Materials | Evolved 2 slots: Utility x2 2196 | -9/Materials | Build established: Scavenger-Mutant 2810 | -9/Materials | Build established: Mutant 3172 | -9/Materials | Discovered new exit (range 13) 3235 | -9/Materials | Entered Mines 3249 | -9/Mines | Met a Derelict bent on vengeance 3705 | -9/Mines | Received a Mining Laser from a helpful Derelict 3898 | -9/Mines | Discovered new exit (range 5) 3907 | -9/Mines | Entered Materials 3907 | -8/Materials | Accompanied by 1 ally 3907 | -8/Materials | Evolved 2 slots: Utility x1, Weapon x1 4101 | -8/Materials | Lost 5 parts (3u2w) 4348 | -8/Materials | Destroyed 7 combat bots 4357 | -8/Materials | Lost 9 parts (1p3n1u4w) 4648 | -8/Materials | Core integrity fell below 50% 5026 | -8/Materials | Build established: Scavenger-Gunner 5407 | -8/Materials | Garrison activated, responded to threat 5507 | -8/Materials | First assault squad dispatched 5564 | -8/Materials | Core integrity fell below 20% 5592 | -8/Materials | Garrison activated, responded to threat 5629 | -8/Materials | Lost 6 parts (2n2u2w) 6162 | -8/Materials | Build established: Scavenger-Tank 6249 | -8/Materials | Destroyed by G-47 Trooper with Particle Gun Last Messages --------------- results: 06202_ Terminal x1 06213_ Kicked T-07 Excavator. 06214_ T-07 Excavator sends out distress signal. 06227_ Dropped Lgt. Assault Rifle. 06229_ Acquired Imp. Light Cannon. 06240_ Y-45 Defender destroyed. 06241_ K-01 Serf collects debris. 06245_ Acquired 38 matter. 06245_ K-01 Serf collects debris. 06247_ C-30 ARC bursts open, deploying its payload. 06247_ G-50 Soldier unfolds itself. 06247_ B-36 Bruiser unfolds itself. 06247_ G-47 Trooper unfolds itself. 06247_ I-25 Savior unfolds itself. 06248_ Acquired 9 matter. 06248_ G-47 Trooper destroyed. 06248_ K-01 Serf destroyed. 06248_ G-47 Trooper knocked back. Map ----- +----------------------------------------------------+ | ?????????????????????????????????????????????????? | | ?????????????????????????????????????????????????? | | ?????????????????????????????????????????????????? | | ?????????????????????????????????????????????????? | | ?????????????????????????????????????????????????? | | ?????????????????????????????????????????????????? | | ?????????????????????????????????????????????????? | | ?????????????????????????????????????????????????? | | ?????????????????????????????????????????????????? | | ?????????????????????????????????????????????????? | | ?????????????????????????????????????????????????? | | ?????????????????????????????????????????????????? | | ??????????????????? # ????## ????????????????????? | | ?????????????"""??? # ????###????????????????????? | | ?????????????"""??? # ???? ! ????????????????????? | | ?????????????"""??? # ???? ?????????????????????? | | ??????????????????? # ??? ????? ##????????????? | | ?????????????"""??? # ??? """?""" ##????????????? | | ?????????????"""??? + ??? """?""" ##????????????? | | ?????????????"""??? # ?? """ """ ##????????????? | | ?????????????????? # ## ? ##????????????? | | ??????????????????### ## #############?# | | ??????????????????## # ########## #?# | | ??????????????????## %= g ##########? | | ??????????????????## [b %i # # #? | | ??????????????????## =@g%= # " #? | | ??????????????????## ###### # # #? | | ??????????????????####+##### ### #[= # #? | | ?????????????????? # ### # ##?? | | ?????????????????????""""" #[ ### + ##?? | | ?????????????????????""T"" # """ ### ########### | | ?????????????????????????? # """ ### ## "" # | | ?????????????????????????? # """ ### ## ""S # | | ?????????????????????????? # ## # ! "" # | | ?????????????????????????? # """ ## # # | | ?????????????????????????? # """ ## +% # | | ??????????????????????????## """ ## # """ # | | ??????????????????????????## ## # """ # | | ?????????????????????????? + ######## """ + | | ??????????????????????????###+#####?????# !% # | | ????????????? ##???### #####?????####+##### | | ?????????????####+##+######## ##???????????# #?### | | ?????????????##! ########+##???????????#%#?# ! | | ?????????????## " # #########????# #?# | | ?????????????##! "G" # ! # #????# #?#! | | ???????######## "! !# # ###### ### | | ???????# #! !# """ # ## | | ???????#"S # ! =+% """ + !*### | | ???????#""" #+###### """ # # | | ???????# "" !#%###### """ # #####% # | +----------------------------------------------------+ Best States ------------- Heat Dissipation 53 Energy Generation 14 Energy Capacity 280 Matter Stores 400 Matter Capacity 400 Sight Range 16 Terrain Scan Range 14 Terrain Scan Density 85 Armor Coverage 225 Resistance: KI 20 Evasion (%) 50 Targeting Accuracy 6 Recoil Reduction 2 Item Schematics ----------------- None Robot Schematics ------------------ None Fabricated ------------ Nothing Alien Tech Used ----------------- None Achievements -------------- Everything Is Under Control Hey, That's Mine! It's Just You Significant Disruption Challenges ------------ None Game ------ Seed PiercingCargoDiverter Manual? 0 Play Time 01:13:42 Cumulative 8.0 hours Start 2024.04.04 @ 04:22:10 End 2024.04.04 @ 05:51:48 Sessions 1 Manual Loads 0 Difficulty Rogue Special Mode None Game No. 9 Rogue 9 Adventurer 0 Explorer 0 Win Type - Total 0 Types 0/0/0/0/0/0/0/0/0 Lore% 4 Gallery% 12 Achievement% 12 Wizard Run 0 Options --------- Layout 1 ASCII 0 Keyboard 0 Movement Mouse Keybinds 0 Fullscreen 1 Font 32/SmallcapsGlow Map View 50x35 Zoom Use 0% Tactical HUD 1 Map Filters NONE Filters NONE Steam 1 RUN: cd3b2221-6e71-48f1-882f-de90653020c4